fUSD/lending_fUSD_20250806
["ID","MTS","AMOUNT","RATE_DAILY","PERIOD"]
[377575480,1754445119080,-151.0,0.00036438,7]
[377575481,1754445119089,-151.0,0.00036438,7]
[377575482,1754445119099,-11921.43,0.00036438,14]
[377575483,1754445119108,-1145.83,0.00036438,14]
[377575484,1754445119118,-446.21,0.00036438,14]
[377575485,1754445119127,-584.03,0.00036438,14]
[377575486,1754445119137,-2361.68,0.00036438,14]
[377575487,1754445119146,-2558.14,0.00036438,14]
[377575488,1754445119155,-727.35,0.00036438,14]
[377575489,1754445119165,-400.0,0.00036438,14]
[377575490,1754445119174,-410.84,0.00036438,14]
[377575491,1754445119183,-400.0,0.00036438,14]
[377575492,1754445119193,-400.0,0.00036438,14]
[377575493,1754445119203,-1922.53,0.00036438,14]
[377575494,1754445119213,-400.0,0.00036438,14]
[377575495,1754445119222,-400.0,0.00036438,14]
[377575496,1754445119232,-823.02,0.00036438,14]
[377575497,1754445119241,-983.36,0.00036438,14]
[377575498,1754445119252,-2701.61,0.00036438,14]
[377575499,1754445119261,-1019.92,0.00036438,14]
[377575500,1754445119274,-2514.73,0.00036438,14]
[377575501,1754445119283,-782.82,0.00036438,14]
[377575502,1754445119292,-3185.2,0.00036438,14]
[377575503,1754445119302,-437.92,0.00036438,14]
[377575504,1754445119311,-2875.37,0.00036438,14]
[377575505,1754445119322,-2546.61,0.00036438,14]
[377575506,1754445119331,-1251.76,0.00036438,14]
[377575507,1754445119341,-400.0,0.00036438,14]
[377575508,1754445119351,-2798.78,0.00036438,14]
[377575509,1754445119361,-1013.74,0.00036438,14]
[377575510,1754445119371,-400.0,0.00036438,14]
[377575511,1754445119380,-1537.42,0.00036438,14]
[377575512,1754445119390,-2866.67,0.00036438,14]
[377575513,1754445119399,-400.0,0.00036438,14]
[377575514,1754445119408,-400.0,0.00036438,14]
[377575515,1754445119418,-400.0,0.00036438,14]
[377575516,1754445119427,-2529.46,0.00036438,14]
[377575517,1754445119437,-2815.7,0.00036438,14]
[377575518,1754445119446,-1627.3,0.00036438,14]
[377575519,1754445119455,-400.0,0.00036438,14]
[377575520,1754445119465,-2945.98,0.00036438,14]
[377575521,1754445119474,-496.21,0.00036438,14]
[377575522,1754445119484,-610.57,0.00036438,14]
[377575523,1754445119493,-1967.92,0.00036438,14]
[377575524,1754445119503,-3219.58,0.00036438,14]
[377575525,1754445119512,-547.97,0.00036438,14]
[377575526,1754445119521,-1751.29,0.00036438,14]
[377575527,1754445119531,-1961.23,0.00036438,14]
[377575528,1754445119540,-1517.52,0.00036438,14]
[377575529,1754445119550,-859.69,0.00036438,14]
[377575530,1754445119559,-400.0,0.00036438,14]
[377575531,1754445119568,-2216.79,0.00036438,14]
[377575532,1754445119578,-400.0,0.00036438,14]
[377575533,1754445119588,-517.11,0.00036438,14]
[377575534,1754445119598,-517.54,0.00036438,14]
[377575535,1754445119607,-551.25,0.00036438,14]
[377575536,1754445119617,-2826.95,0.00036438,14]
[377575537,1754445119626,-400.0,0.00036438,14]
[377575538,1754445119637,-424.14,0.00036438,14]
[377575539,1754445119646,-2395.65,0.00036438,14]
[377575540,1754445119658,-982.16,0.00036438,14]
[377575541,1754445119669,-852.19,0.00036438,14]
[377575542,1754445119678,-2448.42,0.00036438,14]
[377575543,1754445119688,-1605.08,0.00036438,14]
[377575544,1754445119698,-400.0,0.00036438,14]
[377575545,1754445119707,-1867.43,0.00036438,14]
[377575546,1754445119718,-1402.25,0.00036438,14]
[377575547,1754445119729,-1962.72,0.00036438,14]
[377575548,1754445119738,-1463.25,0.00036438,14]
[377575549,1754445119747,-2516.23,0.00036438,14]
[377575550,1754445119757,-538.31,0.00036438,14]
[377575551,1754445119767,-528.34,0.00036438,14]
[377575552,1754445119776,-400.0,0.00036438,14]
[377575553,1754445119786,-1761.9,0.00036438,14]
[377575554,1754445119795,-466.16,0.00036438,14]
[377575555,1754445119805,-400.0,0.00036438,7]
[377575556,1754445119816,-933.27,0.00036438,14]
[377575557,1754445119825,-400.0,0.00036438,14]
[377575558,1754445119838,-400.0,0.00036438,14]
[377575559,1754445119850,-1388.31,0.00036438,14]
[377575560,1754445119859,-3989.76,0.00036438,14]
[377575561,1754445119870,-1291.42,0.00036438,14]
[377575562,1754445119881,-1321.37,0.00036438,14]
[377575563,1754445119890,-400.0,0.00036438,14]
[377575564,1754445119900,-1276.43,0.00036438,14]
[377575565,1754445119910,-3823.52,0.00036438,14]
[377575566,1754445119921,-586.88,0.00036438,14]
[377575567,1754445119930,-400.0,0.00036438,14]
[377575568,1754445119940,-2008.43,0.00036438,14]
[377575569,1754445119949,-2944.88,0.00036438,14]
[377575570,1754445119959,-400.0,0.00036438,14]
[377575571,1754445119969,-434.35,0.00036438,14]
[377575572,1754445119979,-1621.1,0.00036438,14]
[377575573,1754445119988,-400.0,0.00036438,14]
[377575574,1754445119997,-2494.8,0.00036438,14]
[377575575,1754445120008,-692.12,0.00036438,14]
[377575576,1754445120017,-1582.0,0.00036438,14]
[377575577,1754445120027,-790.83,0.00036438,14]
[377575578,1754445120036,-400.0,0.00036438,14]
[377575579,1754445120047,-623.29,0.00036438,14]
[377575580,1754445120056,-2061.99,0.00036438,14]
[377575581,1754445120066,-2539.32,0.00036438,14]
[377575582,1754445120076,-2136.46,0.00036438,14]
[377575583,1754445120087,-606.74,0.00036438,14]
[377575584,1754445120097,-2048.1,0.00036438,14]
[377575585,1754445120108,-1804.32,0.00036438,14]
[377575586,1754445120118,-400.0,0.00036438,14]
[377575587,1754445120128,-400.0,0.00036438,14]
[377575588,1754445120137,-400.0,0.00036438,14]
[377575589,1754445120147,-92603.75069193,0.00036438,2]
[377575590,1754445120157,-150.0,0.00036441,2]
[377575591,1754445120166,-150.0,0.00036445,2]
[377575592,1754445120175,-150.0,0.00036478,2]
[377575593,1754445120185,-192.84656647,0.000365,120]
[377575594,1754445120195,-150.0,0.00036501,2]
[377575595,1754445120204,-150.0,0.00036507,2]
[377575596,1754445120214,-150.0,0.00036511,2]
[377575597,1754445120223,-150.0,0.00036513,2]
[377575598,1754445120232,-150.0,0.00036526,2]
[377575599,1754445120241,-234.78,0.00036531,120]
[377575600,1754445120252,-1000.0,0.0003654,7]
[377575601,1754445120262,-150.0,0.00036542,2]
[377575602,1754445120272,-150.0,0.00036543,2]
[377575603,1754445120281,-792.80128842,0.00036555,7]
[377575604,1754445120290,-152.0,0.00036568,7]
[377575605,1754445120299,-150.0,0.00036575,2]
[377575606,1754445120309,-150.0,0.00036587,2]
[377575607,1754445120318,-161.49695315,0.00036612,2]
[377575608,1754445120327,-150.0,0.00036617,2]
[377575609,1754445120336,-150.0,0.00036625,2]
[377575610,1754445120346,-1000.0,0.00036636,7]
[377575611,1754445120355,-650.20530159,0.00036636,7]
[377575612,1754445120364,-150.0,0.00036656,2]
[377575613,1754445120374,-150.0,0.00036696,2]
[377575614,1754445120383,-150.0,0.00036698,2]
[377575615,1754445120392,-1406.07,0.000367,12]
[377575616,1754445120402,-150.0,0.00036703,2]
[377575617,1754445120411,-500.0,0.00036703,120]
[377575618,1754445120420,-523.79,0.00036705,4]
[377575619,1754445120429,-1585.43,0.00036711,14]
[377575620,1754445120438,-500.0,0.00036711,14]
[377575621,1754445120448,-855.07,0.00036711,14]
[377575622,1754445120457,-500.0,0.00036711,14]
[377575623,1754445120466,-1005.57,0.00036711,14]
[377575624,1754445120475,-518.56,0.00036711,14]
[377575625,1754445120485,-500.0,0.00036711,14]
[377575626,1754445120496,-500.0,0.00036711,14]
[377575627,1754445120506,-151.0,0.00036712,7]
[377575628,1754445120516,-1214.0,0.00036712,7]
[377575629,1754445120526,-1214.0,0.00036712,7]
[377575630,1754445120536,-887.62462747,0.00036712,7]
[377575631,1754445120545,-151.0,0.00036712,7]
[377575632,1754445120555,-151.0,0.00036712,7]
[377575633,1754445120565,-229.40307649,0.00036712,14]
[377575634,1754445120574,-151.0,0.00036712,7]
[377575635,1754445120583,-151.0,0.00036712,7]
[377575636,1754445120592,-151.0,0.00036712,7]
[377575637,1754445120602,-168.17232396,0.00036712,14]
[377575638,1754445120611,-400.0,0.00036712,14]
[377575639,1754445120621,-447.76420032,0.00036712,14]
[377575640,1754445120631,-400.0,0.00036712,14]
[377575641,1754445120641,-225.93093628,0.00036712,14]
[377575642,1754445120651,-363.43785716,0.00036712,14]
[377575643,1754445120660,-400.0,0.00036712,14]
[377575644,1754445120669,-400.0,0.00036712,14]
[377575645,1754445120678,-400.0,0.00036712,14]
[377575646,1754445120687,-400.0,0.00036712,14]
[377575647,1754445120696,-400.0,0.00036712,14]
[377575648,1754445120706,-400.0,0.00036712,14]
[377575649,1754445120715,-464.89867646,0.00036712,14]
[377575650,1754445120725,-400.0,0.00036712,14]
[377575651,1754445120735,-1245.70411346,0.00036712,7]
[377575652,1754445120744,-246.26091106,0.00036712,14]
[377575653,1754445120754,-400.0,0.00036712,14]
[377575654,1754445120764,-400.0,0.00036712,2]
[377575655,1754445120782,-400.0,0.00036712,14]
[377575656,1754445120793,-400.0,0.00036712,14]
[377575657,1754445120802,-510.38334723,0.00036712,14]
[377575658,1754445120813,-400.0,0.00036712,14]
[377575659,1754445120822,-428.777142,0.00036712,7]
[377575660,1754445120833,-428.777142,0.00036712,7]
[377575661,1754445120845,-400.0,0.00036712,14]
[377575662,1754445120855,-428.777142,0.00036712,7]
[377575663,1754445120864,-428.777142,0.00036712,7]
[377575664,1754445120874,-400.0,0.00036712,14]
[377575665,1754445120885,-1093.16,0.00036712,14]
[377575666,1754445120895,-800.2,0.00036712,14]
[377575667,1754445120905,-400.0,0.00036712,14]
[377575668,1754445120914,-549.39,0.00036712,14]
[377575669,1754445120923,-1040.46,0.00036712,14]
[377575670,1754445120932,-618.77,0.00036712,14]
[377575671,1754445120941,-400.0,0.00036712,14]
[377575672,1754445120950,-400.0,0.00036712,14]
[377575673,1754445120960,-1828.13,0.00036712,14]
[377575674,1754445120970,-463.3,0.00036712,14]
[377575675,1754445120979,-400.0,0.00036712,14]
[377575676,1754445120989,-400.0,0.00036712,14]
[377575677,1754445120998,-400.0,0.00036712,14]
[377575678,1754445121009,-2382.06,0.00036712,14]
[377575679,1754445121019,-400.0,0.00036712,14]
[377575680,1754445121028,-355.08707563,0.00036712,14]
[377575681,1754445121038,-400.0,0.00036712,14]
[377575682,1754445121047,-400.0,0.00036712,14]
[377575683,1754445121056,-1551.34,0.00036712,14]
[377575684,1754445121066,-1555.79,0.00036712,14]
[377575685,1754445121075,-1562.0,0.00036712,14]
[377575686,1754445121086,-402.45355496,0.00036712,14]
[377575687,1754445121095,-400.0,0.00036712,14]
[377575688,1754445121105,-1037.33,0.00036712,14]
[377575689,1754445121115,-400.0,0.00036712,5]
[377575690,1754445121124,-607.17,0.00036712,14]
[377575691,1754445121134,-400.0,0.00036712,14]
[377575692,1754445121143,-366.95809947,0.00036712,14]
[377575693,1754445121153,-400.0,0.00036712,14]
[377575694,1754445121162,-400.0,0.00036712,14]
[377575695,1754445121171,-400.0,0.00036712,14]
[377575696,1754445121181,-400.0,0.00036712,14]
[377575697,1754445121191,-400.0,0.00036712,14]
[377575698,1754445121200,-538.42,0.00036712,14]
[377575699,1754445121209,-1423.6,0.00036712,14]
[377575700,1754445121219,-671.19,0.00036712,14]
[377575701,1754445121228,-400.0,0.00036712,14]
[377575702,1754445121237,-465.3,0.00036712,14]
[377575703,1754445121247,-400.0,0.00036712,14]
[377575704,1754445121256,-400.0,0.00036712,14]
[377575705,1754445121266,-400.0,0.00036712,14]
[377575706,1754445121275,-817.53,0.00036712,14]
[377575707,1754445121284,-400.0,0.00036712,14]
[377575708,1754445121294,-407.81,0.00036712,14]
[377575709,1754445121303,-400.0,0.00036712,14]
[377575710,1754445121312,-507.16,0.00036712,14]
[377575711,1754445121322,-400.0,0.00036712,14]
[377575712,1754445121331,-482.44,0.00036712,14]
[377575713,1754445121340,-400.0,0.00036712,14]
[377575714,1754445121350,-400.0,0.00036712,14]
[377575715,1754445121358,-556.12,0.00036712,14]
[377575716,1754445121368,-400.0,0.00036712,14]
[377575717,1754445121377,-554.87,0.00036712,14]
[377575718,1754445121388,-400.0,0.00036712,14]
[377575719,1754445121397,-400.0,0.00036712,14]
[377575720,1754445121407,-400.0,0.00036712,14]
[377575721,1754445121418,-224.32423861,0.00036712,14]
[377575722,1754445121428,-400.0,0.00036712,14]
[377575723,1754445121438,-400.0,0.00036712,14]
[377575724,1754445121448,-400.0,0.00036712,14]
[377575725,1754445121457,-400.0,0.00036712,14]
[377575726,1754445121467,-1341.76,0.00036712,14]
[377575727,1754445121477,-776.19,0.00036712,14]
[377575728,1754445121487,-400.0,0.00036712,14]
[377575729,1754445121497,-402.4663735,0.00036712,14]
[377575730,1754445121507,-470.14,0.00036712,14]
[377575731,1754445121518,-400.0,0.00036712,14]
[377575732,1754445121527,-400.0,0.00036712,14]
[377575733,1754445121537,-1323.57,0.00036712,14]
[377575734,1754445121547,-400.0,0.00036712,14]
[377575735,1754445121557,-400.0,0.00036712,14]
[377575736,1754445121566,-1141.48,0.00036712,14]
[377575737,1754445121576,-1119.61,0.00036712,14]
[377575738,1754445121586,-1503.27,0.00036712,14]
[377575739,1754445121596,-1078.09,0.00036712,14]
[377575740,1754445121748,-400.0,0.00036712,14]
[377575741,1754445121764,-400.0,0.00036712,14]
[377575742,1754445121789,-400.0,0.00036712,14]
[377575743,1754445121799,-400.0,0.00036712,14]
[377575744,1754445121808,-400.0,0.00036712,14]
[377575745,1754445121818,-400.0,0.00036712,14]
[377575746,1754445121827,-1713.36,0.00036712,14]
[377575747,1754445121838,-589.39,0.00036712,14]
[377575748,1754445121851,-904.53,0.00036712,14]
[377575749,1754445121861,-2898.63,0.00036712,14]
[377575750,1754445121870,-400.0,0.00036712,14]
[377575751,1754445121880,-400.0,0.00036712,14]
[377575752,1754445121890,-151.0,0.00036712,7]
[377575753,1754445121899,-151.0,0.00036712,7]
[377575754,1754445121909,-400.0,0.00036712,14]
[377575755,1754445121919,-400.0,0.00036712,14]
[377575756,1754445121928,-400.0,0.00036712,14]
[377575757,1754445121938,-1559.97,0.00036712,14]
[377575758,1754445121947,-400.0,0.00036712,14]
[377575759,1754445121956,-1845.55,0.00036712,14]
[377575760,1754445121966,-2002.24,0.00036712,14]
[377575761,1754445121975,-2734.57,0.00036712,14]
[377575762,1754445121985,-400.0,0.00036712,14]
[377575763,1754445121995,-424.18,0.00036712,14]
[377575764,1754445122004,-400.0,0.00036712,14]
[377575765,1754445122014,-400.0,0.00036712,14]
[377575766,1754445122024,-521.33,0.00036712,14]
[377575767,1754445122033,-837.62,0.00036712,14]
[377575768,1754445122043,-400.0,0.00036712,14]
[377575769,1754445122052,-710.32,0.00036712,14]
[377575770,1754445122062,-400.0,0.00036712,14]
[377575771,1754445122071,-1501.67,0.00036712,14]
[377575772,1754445122081,-400.0,0.00036712,14]
[377575773,1754445122092,-1946.53,0.00036712,14]
[377575774,1754445122102,-400.0,0.00036712,14]
[377575775,1754445122111,-917.13,0.00036712,14]
[377575776,1754445122121,-400.0,0.00036712,14]
[377575777,1754445122130,-400.0,0.00036712,14]
[377575778,1754445122139,-400.0,0.00036712,14]
[377575779,1754445122149,-2201.64,0.00036712,14]
[377575780,1754445122159,-400.0,0.00036712,14]
[377575781,1754445122168,-400.0,0.00036712,14]
[377575782,1754445122178,-789.36,0.00036712,14]
[377575783,1754445122187,-400.0,0.00036712,14]
[377575784,1754445122196,-400.0,0.00036712,14]
[377575785,1754445122206,-1035.11,0.00036712,14]
[377575786,1754445122215,-400.0,0.00036712,14]
[377575787,1754445122225,-400.0,0.00036712,14]
[377575788,1754445122235,-369.34767448,0.00036712,14]
[377575789,1754445122244,-400.0,0.00036712,14]
[377575790,1754445122254,-651.23,0.00036712,14]
[377575791,1754445122263,-2099.0,0.00036712,14]
[377575792,1754445122273,-400.0,0.00036712,14]
[377575793,1754445122282,-592.11,0.00036712,14]
[377575794,1754445122291,-422.23,0.00036712,14]
[377575795,1754445122301,-400.0,0.00036712,14]
[377575796,1754445122311,-400.0,0.00036712,14]
[377575797,1754445122320,-400.0,0.00036712,14]
[377575798,1754445122330,-400.0,0.00036712,14]
[377575799,1754445122340,-1646.02,0.00036712,14]
[377575800,1754445122349,-1797.61,0.00036712,14]
[377575801,1754445122359,-1194.38,0.00036712,14]
[377575802,1754445122368,-400.0,0.00036712,14]
[377575803,1754445122377,-896.94,0.00036712,14]
[377575804,1754445122386,-1788.93,0.00036712,14]
[377575805,1754445122395,-400.0,0.00036712,14]
[377575806,1754445122404,-400.0,0.00036712,14]
[377575807,1754445122414,-768.55,0.00036712,14]
[377575808,1754445122422,-400.0,0.00036712,14]
[377575809,1754445122431,-701.55,0.00036712,14]
[377575810,1754445122441,-1062.63,0.00036712,14]
[377575811,1754445122450,-985.9,0.00036712,14]
[377575812,1754445122459,-947.7,0.00036712,14]
[377575813,1754445122469,-400.0,0.00036712,14]
[377575814,1754445122478,-1163.17,0.00036712,14]
[377575815,1754445122488,-1794.14,0.00036712,14]
[377575816,1754445122497,-739.15,0.00036712,14]
[377575817,1754445122506,-400.0,0.00036712,14]
[377575818,1754445122515,-1094.35,0.00036712,14]
[377575819,1754445122525,-1344.81,0.00036712,14]
[377575820,1754445122535,-400.0,0.00036712,14]
[377575821,1754445122544,-446.26,0.00036712,14]
[377575822,1754445122553,-405.78,0.00036712,14]
[377575823,1754445122562,-967.91,0.00036712,14]
[377575824,1754445122572,-1173.64,0.00036712,14]
[377575825,1754445122581,-2109.91,0.00036712,14]
[377575826,1754445122592,-2203.77,0.00036712,14]
[377575827,1754445122602,-811.64,0.00036712,14]
[377575828,1754445122611,-400.0,0.00036712,14]
[377575829,1754445122620,-400.0,0.00036712,14]
[377575830,1754445122630,-400.0,0.00036712,14]
[377575831,1754445122640,-400.0,0.00036712,14]
[377575832,1754445122651,-400.0,0.00036712,14]
[377575833,1754445122660,-400.0,0.00036712,14]
[377575834,1754445122670,-400.0,0.00036712,14]
[377575835,1754445122679,-400.0,0.00036712,14]
[377575836,1754445122688,-400.0,0.00036712,14]
[377575837,1754445122697,-400.0,0.00036712,14]
[377575838,1754445122707,-469.16,0.00036712,14]
[377575839,1754445122718,-307.88393638,0.00036712,14]
[377575840,1754445122727,-923.75,0.00036712,14]
[377575841,1754445122737,-400.0,0.00036712,14]
[377575842,1754445122747,-400.0,0.00036712,14]
[377575843,1754445122756,-554.71,0.00036712,14]
[377575844,1754445122766,-604.15,0.00036712,14]
[377575845,1754445122776,-494.91,0.00036712,14]
[377575846,1754445122786,-400.0,0.00036712,14]
[377575847,1754445122796,-666.51,0.00036712,14]
[377575848,1754445122806,-400.0,0.00036712,14]
[377575849,1754445122816,-400.0,0.00036712,14]
[377575850,1754445122825,-400.0,0.00036712,14]
[377575851,1754445122836,-1810.36,0.00036712,14]
[377575852,1754445122849,-400.0,0.00036712,14]
[377575853,1754445122858,-937.59,0.00036712,14]
[377575854,1754445122868,-1765.04,0.00036712,14]
[377575855,1754445122879,-400.0,0.00036712,14]
[377575856,1754445122888,-662.56,0.00036712,14]
[377575857,1754445122899,-1884.93,0.00036712,14]
[377575858,1754445122908,-426.54,0.00036712,14]
[377575859,1754445122919,-2173.18,0.00036712,14]
[377575860,1754445122928,-400.0,0.00036712,14]
[377575861,1754445122938,-400.0,0.00036712,14]
[377575862,1754445122948,-1051.98,0.00036712,14]
[377575863,1754445122957,-400.0,0.00036712,14]
[377575864,1754445122967,-638.49,0.00036712,14]
[377575865,1754445122976,-400.0,0.00036712,7]
[377575866,1754445122986,-400.0,0.00036712,14]
[377575867,1754445122995,-400.0,0.00036712,14]
[377575868,1754445123004,-505.05,0.00036712,14]
[377575869,1754445123014,-823.45,0.00036712,14]
[377575870,1754445123024,-400.0,0.00036712,14]
[377575871,1754445123034,-885.84,0.00036712,14]
[377575872,1754445123044,-716.14,0.00036712,14]
[377575873,1754445123053,-1446.43,0.00036712,14]
[377575874,1754445123064,-1186.37,0.00036712,14]
[377575875,1754445123074,-992.97,0.00036712,14]
[377575876,1754445123084,-400.0,0.00036712,14]
[377575877,1754445123094,-1008.6,0.00036712,14]
[377575878,1754445123104,-400.0,0.00036712,14]
[377575879,1754445123114,-400.0,0.00036712,14]
[377575880,1754445123123,-1537.35,0.00036712,14]
[377575881,1754445123133,-763.76,0.00036712,14]
[377575882,1754445123144,-594.52,0.00036712,14]
[377575883,1754445123154,-620.62,0.00036712,14]
[377575884,1754445123163,-400.0,0.00036712,14]
[377575885,1754445123173,-2033.15,0.00036712,14]
[377575886,1754445123183,-607.47,0.00036712,14]
[377575887,1754445123193,-400.0,0.00036712,14]
[377575888,1754445123203,-400.0,0.00036712,14]
[377575889,1754445123213,-475.13,0.00036712,14]
[377575890,1754445123222,-1085.12,0.00036712,14]
[377575891,1754445123232,-1246.56,0.00036712,14]
[377575892,1754445123241,-1188.02,0.00036712,14]
[377575893,1754445123250,-400.0,0.00036712,14]
[377575894,1754445123259,-1141.08,0.00036712,14]
[377575895,1754445123269,-860.58,0.00036712,14]
[377575896,1754445123278,-2113.04,0.00036712,14]
[377575897,1754445123287,-1843.9,0.00036712,14]
[377575898,1754445123297,-400.0,0.00036712,14]
[377575899,1754445123307,-400.0,0.00036712,14]
[377575900,1754445123316,-909.95,0.00036712,14]
[377575901,1754445123326,-400.0,0.00036712,14]
[377575902,1754445123335,-400.0,0.00036712,14]
[377575903,1754445123345,-400.0,0.00036712,14]
[377575904,1754445123355,-3266.12,0.00036712,14]
[377575905,1754445123365,-1391.51,0.00036712,14]
[377575906,1754445123375,-719.58,0.00036712,14]
[377575907,1754445123386,-1913.41,0.00036712,14]
[377575908,1754445123396,-511.19,0.00036712,14]
[377575909,1754445123406,-400.0,0.00036712,14]
[377575910,1754445123416,-400.0,0.00036712,14]
[377575911,1754445123426,-400.0,0.00036712,14]
[377575912,1754445123436,-400.0,0.00036712,14]
[377575913,1754445123445,-503.5,0.00036712,14]
[377575914,1754445123455,-400.0,0.00036712,14]
[377575915,1754445123465,-3399.61,0.00036712,14]
[377575916,1754445123474,-400.0,0.00036712,14]
[377575917,1754445123484,-400.0,0.00036712,14]
[377575918,1754445123494,-1788.17,0.00036712,14]
[377575919,1754445123503,-488.85,0.00036712,14]
[377575920,1754445123513,-1956.52,0.00036712,14]
[377575921,1754445123523,-400.0,0.00036712,14]
[377575922,1754445123533,-1411.45,0.00036712,14]
[377575923,1754445123542,-400.0,0.00036712,14]
[377575924,1754445123552,-647.61,0.00036712,14]
[377575925,1754445123562,-400.0,0.00036712,14]
[377575926,1754445123572,-400.0,0.00036712,14]
[377575927,1754445123581,-400.0,0.00036712,14]
[377575928,1754445123592,-546.47,0.00036712,14]
[377575929,1754445123602,-690.81,0.00036712,14]
[377575930,1754445123611,-985.67,0.00036712,14]
[377575931,1754445123621,-1985.89,0.00036712,14]
[377575932,1754445123631,-2195.08,0.00036712,14]
[377575933,1754445123640,-959.45,0.00036712,14]
[377575934,1754445123649,-400.0,0.00036712,14]
[377575935,1754445123659,-672.57,0.00036712,14]
[377575936,1754445123668,-531.05,0.00036712,14]
[377575937,1754445123678,-400.0,0.00036712,14]
[377575938,1754445123688,-1247.88,0.00036712,14]
[377575939,1754445123697,-585.25,0.00036712,14]
[377575940,1754445123707,-400.0,0.00036712,14]
[377575941,1754445123718,-400.0,0.00036712,14]
[377575942,1754445123728,-2434.27,0.00036712,14]
[377575943,1754445123738,-400.0,0.00036712,14]
[377575944,1754445123748,-1651.3,0.00036712,14]
[377575945,1754445123758,-1867.25,0.00036712,14]
[377575946,1754445123768,-1041.88,0.00036712,14]
[377575947,1754445123778,-1301.09,0.00036712,14]
[377575948,1754445123788,-400.0,0.00036712,14]
[377575949,1754445123798,-400.0,0.00036712,14]
[377575950,1754445123808,-400.0,0.00036712,14]
[377575951,1754445123818,-404.9,0.00036712,14]
[377575952,1754445123828,-1903.84,0.00036712,14]
[377575953,1754445123839,-519.19,0.00036712,14]
[377575954,1754445123851,-161.14815636,0.00036712,14]
[377575955,1754445123862,-500.64,0.00036712,14]
[377575956,1754445123873,-400.0,0.00036712,14]
[377575957,1754445123883,-511.74,0.00036712,14]
[377575958,1754445123893,-400.0,0.00036712,14]
[377575959,1754445123904,-627.73,0.00036712,14]
[377575960,1754445123915,-400.0,0.00036712,14]
[377575961,1754445123928,-1050.13,0.00036712,14]
[377575962,1754445123939,-536.37592317,0.00036712,14]
[377575963,1754445123950,-851.23,0.00036712,14]
[377575964,1754445123960,-1371.38,0.00036712,14]
[377575965,1754445123970,-400.0,0.00036712,14]
[377575966,1754445123980,-916.61,0.00036712,14]
[377575967,1754445124362,-653.65,0.00036712,14]
[377575968,1754445124381,-1116.51,0.00036712,14]
[377575969,1754445124413,-732.25,0.00036712,14]
[377575970,1754445124423,-400.0,0.00036712,14]
[377575971,1754445124434,-475.92,0.00036712,14]
[377575972,1754445124444,-770.34,0.00036712,14]
[377575973,1754445124454,-591.46,0.00036712,14]
[377575974,1754445124464,-400.0,0.00036712,14]
[377575975,1754445124474,-1462.8,0.00036712,14]
[377575976,1754445124483,-400.0,0.00036712,14]
[377575977,1754445124493,-1009.21,0.00036712,14]
[377575978,1754445124503,-400.0,0.00036712,14]
[377575979,1754445124512,-1931.17,0.00036712,14]